fUSD/lending_fUSD_20240118
["ID","MTS","AMOUNT","RATE_DAILY","PERIOD"]
[312025786,1705558241976,-686.65,0.00022187,2]
[312025787,1705558241985,-500.0,0.00022187,2]
[312025788,1705558241994,-2213.36,0.00022187,2]
[312025789,1705558242003,-2197.94,0.00022187,2]
[312025790,1705558242012,-500.0,0.00022187,2]
[312025791,1705558242021,-664.52,0.00022187,2]
[312025792,1705558242031,-3017.48,0.00022187,2]
[312025793,1705558242040,-500.0,0.00022187,2]
[312025794,1705558242049,-500.0,0.00022187,2]
[312025795,1705558242058,-500.0,0.00022187,2]
[312025796,1705558242256,-319.11,0.00022187,2]
[312025797,1705558242266,-563.04,0.00022187,2]
[312025798,1705558242276,-1326.44,0.00022187,2]
[312025799,1705558242286,-513.95367083,0.00022187,2]
[312025800,1705558242295,-500.0,0.00022187,2]
[312025801,1705558242304,-764.55,0.00022187,2]
[312025802,1705558242314,-500.0,0.00022187,2]
[312025803,1705558242324,-500.0,0.00022187,2]
[312025804,1705558242333,-588.44,0.00022187,2]
[312025805,1705558242343,-500.0,0.00022187,2]
[312025806,1705558242352,-547.49,0.00022187,2]
[312025808,1705558242361,-705.54,0.00022187,2]
[312025809,1705558242371,-500.0,0.00022187,2]
[312025810,1705558242380,-500.0,0.00022187,2]
[312025811,1705558242389,-217.85,0.00022187,2]
[312025812,1705558242398,-500.0,0.00022187,2]
[312025813,1705558242408,-500.0,0.00022187,2]
[312025814,1705558242417,-500.0,0.00022187,2]
[312025815,1705558242427,-500.0,0.00022187,2]
[312025816,1705558242436,-757.4,0.00022187,2]
[312025817,1705558242445,-703.35,0.00022187,2]
[312025818,1705558242454,-500.0,0.00022187,2]
[312025820,1705558242463,-500.0,0.00022187,2]
[312025821,1705558242472,-280.21183727,0.00022187,2]
[312025822,1705558242482,-851.78,0.00022187,2]
[312025824,1705558242492,-568.37,0.00022187,2]
[312025826,1705558242501,-255.34406993,0.00022187,2]
[312025827,1705558242510,-184.49688913,0.00022187,2]
[312025828,1705558242520,-500.0,0.00022187,2]
[312025829,1705558242529,-500.0,0.00022187,2]
[312025830,1705558242538,-500.0,0.00022187,2]
[312025831,1705558242548,-500.0,0.00022187,2]
[312025832,1705558242558,-500.0,0.00022187,2]
[312025833,1705558242568,-500.0,0.00022187,2]
[312025834,1705558242578,-500.0,0.00022187,2]
[312025835,1705558242588,-882.31,0.00022187,2]
[312025836,1705558242597,-3891.1,0.00022187,2]
[312025837,1705558242607,-500.0,0.00022187,2]
[312025838,1705558242616,-500.0,0.00022187,2]
[312025839,1705558242626,-713.12,0.00022187,2]
[312025840,1705558242635,-1127.35,0.00022187,2]
[312025841,1705558242645,-580.55,0.00022187,2]
[312025842,1705558242656,-222.03,0.00022187,2]
[312025843,1705558242665,-1901.49,0.00022187,2]
[312025844,1705558242675,-500.0,0.00022187,2]
[312025845,1705558242684,-500.0,0.00022187,2]
[312025846,1705558242694,-500.0,0.00022187,2]
[312025847,1705558242703,-500.0,0.00022187,2]
[312025848,1705558242713,-500.0,0.00022187,2]
[312025849,1705558242723,-440.02,0.00022187,2]
[312025850,1705558242732,-847.85,0.00022187,2]
[312025851,1705558242742,-500.0,0.00022187,2]
[312025852,1705558242752,-500.0,0.00022187,2]
[312025853,1705558242764,-500.0,0.00022187,5]
[312025854,1705558242774,-541.76,0.00022187,2]
[312025855,1705558242783,-423.67,0.00022187,2]
[312025856,1705558242792,-1167.21,0.00022187,2]
[312025857,1705558242801,-958.54,0.00022187,2]
[312025858,1705558242811,-603.57,0.00022187,2]
[312025859,1705558242820,-500.0,0.00022187,2]
[312025860,1705558242830,-500.0,0.00022187,2]
[312025861,1705558242840,-913.72,0.00022187,2]
[312025862,1705558242850,-500.0,0.00022187,2]
[312025863,1705558242860,-532.63,0.00022187,2]
[312025864,1705558242869,-783.72,0.00022187,2]
[312025865,1705558242879,-713.77,0.00022187,2]
[312025866,1705558242888,-500.0,0.00022187,2]
[312025867,1705558242897,-500.0,0.00022187,2]
[312025868,1705558242907,-967.02,0.00022187,2]
[312025869,1705558242916,-500.0,0.00022187,2]
[312025870,1705558242927,-500.0,0.00022187,2]
[312025871,1705558242936,-500.0,0.00022187,2]
[312025872,1705558242946,-500.0,0.00022187,2]
[312025874,1705558242955,-500.0,0.00022187,2]
[312025877,1705558242965,-500.0,0.00022187,2]
[312025880,1705558242974,-1067.44,0.00022187,2]
[312025882,1705558242983,-500.0,0.00022187,2]
[312025884,1705558242992,-500.0,0.00022187,2]
[312025885,1705558243001,-620.09,0.00022187,2]
[312025888,1705558243010,-500.0,0.00022187,2]
[312025890,1705558243020,-500.0,0.00022188,2]
[312025892,1705558243029,-190.10040705,0.00022188,2]
[312025894,1705558243038,-500.0,0.00022188,2]
[312025896,1705558243047,-163.17024797,0.00022188,2]
[312025898,1705558243056,-500.0,0.00022188,2]
[312025900,1705558243065,-500.0,0.00022188,2]
[312025902,1705558243076,-500.0,0.00022188,2]
[312025904,1705558243085,-500.0,0.00022188,2]
[312025906,1705558243094,-500.0,0.00022188,2]
[312025908,1705558243103,-527.25517411,0.00022188,2]
[312025910,1705558243113,-500.0,0.00022188,2]
[312025912,1705558243122,-500.0,0.00022188,2]
[312025914,1705558243131,-500.0,0.00022188,2]
[312025916,1705558243140,-507.98660197,0.00022188,2]
[312025918,1705558243149,-431.71845694,0.00022188,2]
[312025920,1705558243159,-500.0,0.00022188,2]
[312025922,1705558243168,-500.0,0.00022188,2]
[312025924,1705558243177,-509.38646818,0.00022188,2]
[312025926,1705558243186,-202.65748637,0.00022188,2]
[312025928,1705558243196,-505.6557991,0.00022188,2]
[312025930,1705558243205,-354.39112232,0.00022188,2]
[312025931,1705558243214,-500.0,0.00022188,2]
[312025932,1705558243223,-500.0,0.00022188,2]
[312025933,1705558243232,-526.51782685,0.00022188,2]
[312025934,1705558243242,-525.15774226,0.00022188,2]
[312025935,1705558243251,-500.0,0.00022188,2]
[312025936,1705558243260,-263.02206623,0.00022188,2]
[312025937,1705558243270,-500.0,0.00022188,2]
[312025938,1705558243279,-500.0,0.00022188,2]
[312025939,1705558243289,-500.0,0.00022188,2]
[312025940,1705558243298,-500.0,0.00022188,2]
[312025941,1705558243308,-505.66456082,0.00022188,2]
[312025942,1705558243317,-500.0,0.00022188,2]
[312025943,1705558243328,-500.0,0.00022188,2]
[312025944,1705558243337,-500.0,0.00022188,2]
[312025945,1705558243346,-500.0,0.00022188,2]
[312025946,1705558243355,-687.26474312,0.00022203,2]
[312025947,1705558243364,-202.055872,0.00022207,2]
[312025948,1705558243373,-162.31,0.00022234,2]
[312025949,1705558243382,-1500.0,0.00022265,2]
[312025950,1705558243392,-800.0,0.00022283,2]
[312025951,1705558243401,-200.0,0.00022305,2]
[312025952,1705558243412,-800.0,0.00022305,2]
[312025953,1705558243421,-162.65,0.00022305,2]
[312025954,1705558243429,-687.26474312,0.00022319,2]
[312025955,1705558243439,-800.0,0.00022325,2]
[312025956,1705558243449,-500.0,0.00022326,2]
[312025957,1705558243458,-721.6,0.00022335,2]
[312025958,1705558243467,-150.0,0.00022336,2]
[312025959,1705558243477,-210.0,0.00022347,2]
[312025960,1705558243486,-151.15160211,0.0002236,2]
[312025961,1705558243496,-544.14,0.00022391,2]
[312025962,1705558243505,-3000.0,0.000224,2]
[312025963,1705558243515,-197.87269726,0.000224,2]
[312025964,1705558243524,-1500.0,0.00022401,2]
[312025965,1705558243533,-197.87269726,0.00022403,2]
[312025966,1705558243543,-197.87269726,0.00022405,2]
[312025967,1705558243552,-150.0,0.00022405,2]
[312025968,1705558243561,-276.81020273,0.00022409,2]
[312025969,1705558243571,-3000.0,0.0002241,2]
[312025970,1705558243580,-3000.0,0.0002242,2]
[312025971,1705558243590,-3000.0,0.0002243,2]
[312025972,1705558243599,-1357.0,0.00022432,2]
[312025973,1705558243608,-836.0,0.00022432,2]
[312025974,1705558243618,-1234.0,0.00022432,2]
[312025975,1705558243627,-218.425,0.00022432,2]
[312025976,1705558243637,-214.0,0.00022432,2]
[312025977,1705558243646,-154.552,0.00022432,2]
[312025978,1705558243656,-3000.0,0.0002244,2]
[312025979,1705558243665,-500.0,0.00022441,2]
[312025980,1705558243675,-200.0,0.00022441,2]
[312025981,1705558243684,-250.0,0.00022445,2]
[312025982,1705558243693,-3000.0,0.0002245,2]
[312025983,1705558243703,-3000.0,0.0002246,2]
[312025984,1705558243713,-3060.67,0.0002246,2]
[312025985,1705558243722,-500.0,0.0002246,2]
[312025986,1705558243732,-1095.99,0.0002246,2]
[312025987,1705558243741,-1996.67,0.0002246,2]
[312025988,1705558243752,-500.0,0.0002246,2]
[312025989,1705558243763,-661.18,0.0002246,2]
[312025990,1705558243773,-543.68,0.0002246,2]
[312025991,1705558243782,-595.99223896,0.0002246,2]
[312025992,1705558243793,-500.0,0.0002246,2]
[312025993,1705558243802,-521.74,0.0002246,2]
[312025994,1705558243812,-500.0,0.0002246,2]
[312025995,1705558243821,-8713.13,0.0002246,2]
[312025996,1705558243831,-1636.39,0.0002246,2]
[312025997,1705558243841,-500.0,0.0002246,2]
[312025998,1705558243850,-668.58,0.0002246,2]
[312025999,1705558243860,-500.0,0.0002246,2]
[312026000,1705558243869,-614.22,0.0002246,2]
[312026001,1705558243879,-738.98,0.0002246,2]
[312026002,1705558243888,-531.31,0.0002246,2]
[312026003,1705558243898,-655.81,0.0002246,2]
[312026004,1705558243908,-1260.69,0.0002246,2]
[312026005,1705558243918,-500.0,0.0002246,2]
[312026006,1705558243927,-500.0,0.0002246,2]
[312026007,1705558243937,-500.0,0.0002246,2]
[312026008,1705558243946,-500.0,0.0002246,2]
[312026009,1705558243955,-1956.95,0.0002246,2]
[312026010,1705558243965,-500.0,0.0002246,2]
[312026011,1705558243974,-500.0,0.0002246,2]
[312026012,1705558243983,-1009.3,0.0002246,2]
[312026013,1705558243993,-500.0,0.0002246,2]
[312026014,1705558244002,-506.7,0.0002246,2]
[312026015,1705558244012,-533.73,0.0002246,2]
[312026016,1705558244022,-1020.4,0.0002246,5]
[312026017,1705558244031,-500.0,0.0002246,2]
[312026018,1705558244040,-500.0,0.0002246,2]
[312026019,1705558244049,-500.0,0.00022461,2]
[312026020,1705558244058,-266.05280495,0.00022461,2]
[312026021,1705558244067,-355.90372113,0.00022461,2]
[312026022,1705558244077,-500.0,0.00022461,2]
[312026023,1705558244086,-500.0,0.00022461,2]
[312026024,1705558244095,-544.63512383,0.00022461,2]
[312026025,1705558244105,-500.0,0.00022461,2]
[312026026,1705558244113,-500.0,0.00022461,2]
[312026027,1705558244123,-500.0,0.00022461,2]
[312026028,1705558244132,-500.0,0.00022461,2]
[312026029,1705558244141,-500.0,0.00022461,2]
[312026030,1705558244150,-500.0,0.00022461,2]
[312026031,1705558244159,-500.0,0.00022461,2]
[312026032,1705558244168,-500.0,0.00022461,2]
[312026033,1705558244178,-266.08465394,0.00022461,2]
[312026034,1705558244187,-500.0,0.00022461,2]
[312026035,1705558244195,-500.0,0.00022461,2]
[312026036,1705558244205,-500.0,0.00022461,2]
[312026037,1705558244214,-500.0,0.00022461,2]
[312026038,1705558244222,-500.0,0.00022461,2]
[312026039,1705558244231,-500.0,0.00022461,2]
[312026040,1705558244240,-492.20011983,0.00022461,2]
[312026041,1705558244250,-500.0,0.00022461,2]
[312026042,1705558244259,-500.0,0.00022461,2]
[312026043,1705558244268,-474.51183321,0.00022461,2]
[312026044,1705558244277,-500.0,0.00022461,2]
[312026045,1705558244287,-500.0,0.00022461,2]
[312026046,1705558244296,-797.12,0.00022461,2]
[312026047,1705558244305,-500.0,0.00022461,2]
[312026048,1705558244314,-500.0,0.00022461,2]
[312026049,1705558244323,-500.0,0.00022461,2]
[312026050,1705558244333,-500.0,0.00022461,2]
[312026051,1705558244343,-534.75076329,0.00022461,2]
[312026052,1705558244352,-584.58,0.00022461,2]
[312026053,1705558244362,-500.0,0.00022461,2]
[312026054,1705558244371,-500.0,0.00022461,2]
[312026055,1705558244380,-500.0,0.00022461,2]
[312026056,1705558244389,-500.0,0.00022461,2]
[312026057,1705558244399,-3798.64,0.00022461,2]
[312026058,1705558244408,-638.29223036,0.00022461,2]
[312026059,1705558244417,-500.0,0.00022461,2]
[312026060,1705558244426,-500.0,0.00022461,2]
[312026061,1705558244435,-500.0,0.00022461,2]
[312026062,1705558244445,-561.05,0.00022461,2]
[312026063,1705558244454,-500.0,0.00022461,2]
[312026064,1705558244464,-500.0,0.00022461,2]
[312026065,1705558244473,-551.43,0.00022461,2]
[312026066,1705558244482,-500.0,0.00022461,2]
[312026067,1705558244491,-500.0,0.00022461,2]
[312026068,1705558244501,-203.46414837,0.00022461,2]
[312026069,1705558244510,-500.0,0.00022461,2]
[312026070,1705558244519,-500.0,0.00022461,2]
[312026071,1705558244582,-500.0,0.00022461,2]
[312026072,1705558244592,-500.0,0.00022461,2]
[312026073,1705558244601,-500.0,0.00022461,2]
[312026074,1705558244610,-500.0,0.00022461,2]
[312026075,1705558244619,-150.0,0.00022461,2]
[312026076,1705558244629,-317.81105761,0.00022461,2]
[312026077,1705558244638,-500.0,0.00022461,2]
[312026078,1705558244647,-500.0,0.00022461,2]
[312026079,1705558244656,-500.0,0.00022461,2]
[312026080,1705558244665,-500.0,0.00022461,2]
[312026081,1705558244674,-500.0,0.00022461,2]
[312026082,1705558244683,-260.44,0.00022461,2]
[312026083,1705558244691,-632.35,0.00022461,2]
[312026084,1705558244701,-500.0,0.00022461,2]
[312026085,1705558244710,-343.98695424,0.00022461,2]
[312026086,1705558244719,-531.09483412,0.00022461,2]
[312026087,1705558244728,-500.0,0.00022461,2]
[312026088,1705558244737,-500.0,0.00022461,2]
[312026089,1705558244747,-481.08515251,0.00022461,2]
[312026090,1705558244760,-500.0,0.00022461,2]
[312026091,1705558244769,-500.0,0.00022461,2]
[312026092,1705558244778,-500.0,0.00022461,2]
[312026093,1705558244787,-500.0,0.00022461,2]
[312026094,1705558244796,-305.94849722,0.00022461,2]
[312026095,1705558244805,-500.0,0.00022461,2]
[312026096,1705558244814,-500.0,0.00022461,2]
[312026097,1705558244823,-500.0,0.00022461,2]
[312026098,1705558244833,-500.0,0.00022461,2]
[312026099,1705558244843,-500.0,0.00022461,2]
[312026100,1705558244852,-519.62,0.00022461,2]
[312026101,1705558244861,-608.72762862,0.00022461,2]
[312026102,1705558244870,-529.23,0.00022461,2]
[312026103,1705558244879,-713.03,0.00022461,2]
[312026104,1705558244887,-436.78655444,0.00022461,2]
[312026105,1705558244896,-500.0,0.00022461,2]
[312026106,1705558244905,-500.0,0.00022461,2]
[312026107,1705558244914,-500.0,0.00022461,2]
[312026108,1705558244924,-500.0,0.00022461,2]
[312026109,1705558244932,-382.53155801,0.00022461,2]
[312026110,1705558244941,-500.0,0.00022461,2]
[312026111,1705558244950,-500.0,0.00022461,2]
[312026112,1705558244959,-177.99715373,0.00022461,2]
[312026113,1705558244968,-500.0,0.00022461,2]
[312026114,1705558244977,-500.0,0.00022461,2]
[312026115,1705558244985,-1773.39,0.00022461,2]
[312026116,1705558244994,-500.0,0.00022461,2]
[312026117,1705558245003,-670.13,0.00022461,2]
[312026118,1705558245012,-3012.23,0.00022461,2]
[312026119,1705558245022,-2241.69,0.00022461,2]
[312026120,1705558245031,-500.0,0.00022461,2]
[312026121,1705558245040,-4274.1,0.00022461,2]
[312026122,1705558245049,-2694.06,0.00022461,2]
[312026123,1705558245058,-429.63,0.00022461,2]
[312026124,1705558245067,-500.0,0.00022461,2]
[312026125,1705558245076,-1621.64,0.00022461,2]
[312026126,1705558245085,-4756.71,0.00022461,2]
[312026127,1705558245094,-642.47,0.00022461,2]
[312026128,1705558245104,-500.0,0.00022461,2]
[312026129,1705558245113,-816.92,0.00022461,2]
[312026130,1705558245122,-1989.97,0.00022461,2]
[312026131,1705558245131,-581.62,0.00022461,2]
[312026132,1705558245140,-500.0,0.00022461,2]
[312026133,1705558245149,-500.0,0.00022461,2]
[312026134,1705558245158,-500.0,0.00022461,2]
[312026135,1705558245167,-1479.5,0.00022461,2]
[312026136,1705558245176,-500.0,0.00022461,2]
[312026137,1705558245185,-603.05,0.00022461,2]
[312026138,1705558245194,-1287.75,0.00022461,2]
[312026139,1705558245204,-500.0,0.00022461,2]
[312026140,1705558245213,-857.62,0.00022461,2]
[312026141,1705558245222,-500.0,0.00022461,2]
[312026142,1705558245232,-500.0,0.00022461,2]
[312026143,1705558245241,-500.0,0.00022461,2]
[312026144,1705558245250,-825.04,0.00022461,2]
[312026145,1705558245259,-1328.5,0.00022461,2]
[312026146,1705558245268,-1695.59,0.00022461,2]
[312026147,1705558245278,-500.0,0.00022461,2]
[312026148,1705558245287,-500.0,0.00022461,2]
[312026149,1705558245296,-500.0,0.00022461,2]
[312026150,1705558245305,-11023.3,0.00022461,2]
[312026151,1705558245315,-996.64,0.00022461,2]
[312026152,1705558245325,-2071.9,0.00022461,2]
[312026153,1705558245334,-588.43,0.00022461,2]
[312026154,1705558245343,-500.0,0.00022461,2]
[312026156,1705558245352,-500.0,0.00022461,2]
[312026157,1705558245361,-500.0,0.00022461,2]
[312026158,1705558245370,-500.0,0.00022461,2]
[312026159,1705558245379,-686.65,0.00022461,2]
[312026160,1705558245388,-500.0,0.00022461,2]
[312026161,1705558245397,-2213.36,0.00022461,2]
[312026162,1705558245407,-2197.94,0.00022461,2]
[312026163,1705558245417,-500.0,0.00022461,2]
[312026164,1705558245426,-664.52,0.00022461,2]
[312026165,1705558245435,-3017.48,0.00022461,2]
[312026166,1705558245444,-500.0,0.00022461,2]
[312026167,1705558245453,-225.16,0.00022461,2]
[312026168,1705558245462,-974.17,0.00022461,2]
[312026169,1705558245471,-1326.44,0.00022461,2]
[312026170,1705558245480,-563.04,0.00022461,2]
[312026171,1705558245490,-268.52,0.00022461,2]
[312026172,1705558245499,-764.55,0.00022461,2]
[312026173,1705558245509,-500.0,0.00022461,2]
[312026176,1705558245518,-952.8,0.00022461,2]
[312026179,1705558245528,-588.44,0.00022461,2]
[312026182,1705558245537,-500.0,0.00022461,2]
[312026184,1705558245546,-547.49,0.00022461,2]
[312026187,1705558245555,-705.54,0.00022461,2]
[312026190,1705558245565,-500.0,0.00022461,2]
[312026192,1705558245574,-500.0,0.00022461,2]
[312026194,1705558245584,-500.0,0.00022461,2]
[312026195,1705558245593,-500.0,0.00022461,2]
[312026196,1705558245602,-500.0,0.00022461,2]
[312026197,1705558245612,-500.0,0.00022461,2]
[312026198,1705558245621,-500.0,0.00022461,2]
[312026199,1705558245631,-1294.63,0.00022461,2]
[312026200,1705558245640,-757.4,0.00022461,2]
[312026201,1705558245650,-703.35,0.00022461,2]
[312026202,1705558245659,-500.0,0.00022461,2]
[312026203,1705558245668,-167.65985451,0.00022461,2]
[312026204,1705558245999,-27.48014549,0.00022461,2]
[312026205,1705558246010,-740.20744275,0.00022461,2]
[312026206,1705558246021,-111.57255725,0.00022461,2]
[312026207,1705558246030,-568.37,0.00022461,2]
[312026208,1705558246039,-500.0,0.00022461,2]
[312026209,1705558246048,-16.41632309,0.00022461,2]
[312026210,1705558246060,-394.09367691,0.00022461,2]
[312026211,1705558246069,-69.30485986,0.00022461,2]
[312026212,1705558246083,-430.69514014,0.00022461,2]
[312026213,1705558246092,-500.0,0.00022461,2]
[312026214,1705558246101,-500.0,0.00022461,2]
[312026215,1705558246111,-500.0,0.00022461,2]
[312026216,1705558246120,-882.31,0.00022461,2]
[312026217,1705558246129,-832.49763738,0.00022461,2]
[312026218,1705558246150,-948.83827011,0.00022461,2]
[312026219,1705558246162,-883.79496145,0.00022461,2]
[312026220,1705558246387,-1225.96913106,0.00022461,2]
[312026221,1705558246396,-500.0,0.00022461,2]
[312026222,1705558246406,-602.95501428,0.00022461,2]
[312026223,1705558246416,-713.12,0.00022461,2]
[312026224,1705558246426,-1127.35,0.00022461,2]
[312026225,1705558246435,-301.80617466,0.00022461,2]
[312026226,1705558246468,-278.74382534,0.00022461,2]
[312026227,1705558246479,-1334.09,0.00022461,2]
[312026228,1705558246489,-1901.49,0.00022461,2]
[312026229,1705558246498,-526.82003819,0.00022461,2]
[312026230,1705558246508,-500.0,0.00022461,2]
[312026231,1705558246518,-500.0,0.00022461,2]
[312026232,1705558246527,-500.0,0.00022461,2]
[312026233,1705558246537,-500.0,0.00022461,2]
[312026234,1705558246546,-500.0,0.00022461,2]
[312026235,1705558246556,-847.85,0.00022461,2]
[312026236,1705558246566,-500.0,0.00022461,2]
[312026237,1705558246575,-500.0,0.00022461,5]
[312026238,1705558246584,-541.76,0.00022461,2]
[312026239,1705558246594,-1167.21,0.00022461,2]
[312026240,1705558246603,-958.54,0.00022461,2]
[312026241,1705558246612,-500.0,0.00022461,2]
[312026242,1705558246622,-450.65,0.00022461,2]
[312026243,1705558246631,-653.56,0.00022461,2]
[312026244,1705558246641,-913.72,0.00022461,2]
[312026245,1705558246650,-500.0,0.00022461,2]
[312026246,1705558246660,-783.72,0.00022461,2]
[312026247,1705558246670,-713.77,0.00022461,2]
[312026248,1705558246679,-500.0,0.00022461,2]
[312026249,1705558246689,-500.0,0.00022461,2]
[312026250,1705558246699,-967.02,0.00022461,2]
[312026251,1705558246709,-500.0,0.00022461,2]
[312026252,1705558246720,-500.0,0.00022461,2]
[312026253,1705558246729,-614.62448444,0.00022461,2]
[312026254,1705558246739,-500.0,0.00022461,2]
[312026255,1705558246750,-500.0,0.00022461,2]
[312026256,1705558246762,-500.0,0.00022461,2]
[312026257,1705558246772,-1067.44,0.00022461,2]
[312026258,1705558246781,-500.0,0.00022461,2]
[312026259,1705558246792,-620.09,0.00022461,2]
[312026260,1705558246801,-500.0,0.00022461,2]
[312026261,1705558246811,-500.0,0.00022462,2]
[312026262,1705558246821,-500.0,0.00022462,2]
[312026263,1705558246831,-500.0,0.00022462,2]
[312026264,1705558246841,-304.01670024,0.00022462,2]
[312026265,1705558246851,-500.0,0.00022462,2]
[312026266,1705558246861,-259.67094957,0.00022462,2]
[312026267,1705558246871,-492.14960176,0.00022462,2]
[312026268,1705558246880,-500.0,0.00022462,2]
[312026269,1705558246890,-288.74134917,0.00022462,2]
[312026270,1705558246899,-500.0,0.00022462,2]
[312026271,1705558246908,-1290.81,0.00022462,2]
[312026272,1705558246917,-1097.74494293,0.00022463,2]
[312026273,1705558246926,-153.99999999,0.00022463,2]
[312026274,1705558246936,-3000.0,0.0002247,2]
[312026275,1705558246945,-3000.0,0.0002248,2]
[312026276,1705558246954,-4551.34500371,0.0002249,5]
[312026277,1705558246963,-3000.0,0.0002249,2]
[312026278,1705558246972,-162.45,0.00022493,2]
[312026279,1705558246981,-12240.31559135,0.000225,2]
[312026280,1705558246990,-150.0,0.000225,2]
[312026281,1705558246999,-3000.0,0.000225,2]
[312026282,1705558247008,-115843.05894892,0.000225,2]
[312026283,1705558247347,-537.34400572,0.000214,2]
[312026284,1705558247358,-254.79687946,0.000214,2]
[312026285,1705558247376,-207.85911482,0.000214,2]
[312026286,1705558247385,-648.70378538,0.00022435,2]
[312026287,1705558247398,-38.56095774,0.00022435,2]
[312026288,1705558247407,-961.43904226,0.000225,2]
[312026289,1705558247420,-1000.0,0.000225,2]
[312026290,1705558247449,-1154.62306119,0.000225,2]
[312026291,1705558247461,-27274.78958068,0.000225,2]
[312026292,1705558646938,-588.0,0.00019482,2]
[312026293,1705558646960,-539.08,0.00019483,2]
[312026294,1705558694502,532.50464613,0.00019483,2]
[312026295,1705558696877,17798.96190936,0.00019483,2]
[312026296,1705558697611,155.40512558,0.00019483,2]
[312026297,1705558698098,7413.23671885,0.00019483,2]
[312026298,1705558698188,885.29825043,0.00019483,2]
[312026299,1705558698932,361.6502114,0.00017998,2]
[312026300,1705558699434,155.7108031,0.00019483,2]
[312026301,1705558701559,2176.62447328,0.00019288,2]
[312026302,1705558702509,846.76451371,0.0002,2]
[312026303,1705558702695,155.0,0.00019483,2]
[312026304,1705558702723,220.31493018,0.00019483,2]
[312026305,1705558703046,379.63055492,0.00019483,2]
[312026306,1705558703357,1035.31557197,0.00019483,2]
[312026307,1705558703535,283.74534747,0.00019483,2]
[312026308,1705558703664,155.39344103,0.00019483,2]
[312026309,1705558703864,1616.08555874,0.00019483,2]
[312026310,1705558704460,568.78565197,0.00019483,2]
[312026311,1705558704697,283.71200153,0.00019483,2]
[312026312,1705558706370,320.34116252,0.00019483,2]
[312026313,1705558707927,533.37470322,0.00019483,2]
[312026314,1705558723268,-614.15,0.00019048,2]
[312026315,1705558723288,-300.97025275,0.00019483,2]
[312026316,1705558723308,-156.80011128,0.00019483,2]
[312026317,1705558723328,-857.00451525,0.00019483,2]
[312026318,1705558723348,-155.0,0.00019483,2]
[312026319,1705558723368,-937.14508584,0.00019483,2]
[312026320,1705558723388,-220.31493018,0.00019483,2]
[312026321,1705558723408,-156.27174111,0.0002,2]
[312026322,1705558723931,533.37470322,0.00019483,2]
[312026323,1705558726506,743.22157966,0.0002,2]
[312026324,1705558738520,155.37246916,0.00019483,2]
[312026325,1705558738697,220.31493018,0.00019483,2]
[312026326,1705558741715,672.79327346,0.00019483,2]
[312026327,1705558741821,157.30383074,0.00019483,2]
[312026328,1705558744604,303.30611585,0.00019483,2]
[312026329,1705558758700,353.29205191,0.00019483,2]
[312026330,1705558791139,300.0,0.00019382,2]
[312026331,1705558864359,4160.65354752,0.00019382,2]
[312026332,1705558866480,547.76596816,0.00019382,2]
[312026333,1705558866539,16729.99776162,0.00019285,2]